bitfinex/quotes_SOLUSD_20240601
["timestamp","ask_amount","ask_price","bid_price","bid_amount"]
[1717262265220,8.241,167.22,167.18,6.2]
[1717262265221,2.2126,167.22,167.18,6.2]
[1717262267319,2.2126,167.22,167.19,6.2]
[1717262271827,2.2126,167.22,167.2,6.2]
[1717262272031,25.9967,167.26,167.12,107.77917294]
[1717262272032,6.0284,167.26,167.21,6.2]
[1717262272210,6.0284,167.26,167.22,6.2]
[1717262272211,2.2124,167.24,167.22,6.2]
[1717262283027,2.2122,167.25,167.23,6.2]
[1717262289024,2.2121,167.26,167.23,6.2]
[1717262293329,2.2121,167.26,167.16,24.226]
[1717262293529,2.2121,167.26,167.21,6.2]
[1717262293743,2.2123,167.25,167.16,24.226]
[1717262294045,6.2,167.25,167.16,6.276]
[1717262294346,2.2125,167.23,167.19,6.2]
[1717262296351,2.2124,167.24,167.19,6.2]
[1717262297952,2.2124,167.24,167.16,6.276]
[1717262298162,6.2,167.24,167.13,4.7966873]
[1717262298460,2.2126,167.22,167.17,6.2]
[1717262298661,2.2128,167.21,167.16,6.2]
[1717262300834,2.2128,167.21,167.13,4.7966873]
[1717262301037,2.2128,167.21,167.16,6.2]
[1717262302564,2.2128,167.21,167.17,6.2]
[1717262303656,2.2128,167.21,167.13,4.7966873]
[1717262303950,2.2128,167.21,167.17,6.2]
[1717262305525,2.2126,167.22,167.17,6.2]
[1717262306147,2.2128,167.21,167.17,6.2]
[1717262306356,6.2,167.24,167.17,6.2]
[1717262306656,2.2129,167.21,167.17,6.2]
[1717262308456,2.2129,167.21,167.13,4.7966873]
[1717262308836,2.2129,167.21,167.17,6.2]
[1717262311056,2.2126,167.22,167.17,6.2]
[1717262312657,2.2128,167.21,167.17,6.2]
[1717262319868,2.2128,167.21,167.12,31.4614]
[1717262319869,2.2128,167.21,167.18,6.2]
[1717262320469,2.2128,167.21,167.19,6.2]
[1717262328058,2.2126,167.22,167.19,6.2]
[1717262329276,2.2127,167.21,167.19,6.2]
[1717262332069,2.2127,167.21,167.12,24.6114]
[1717262332273,2.2127,167.21,167.13,0.34]
[1717262332599,2.2127,167.21,167.18,6.2]
[1717262337067,2.2127,167.21,167.12,31.4614]
[1717262337296,2.2127,167.21,167.17,6.2]
[1717262338793,2.2127,167.21,167.12,31.4614]
[1717262338995,2.2129,167.2,167.12,6.6614]
[1717262339170,2.2129,167.2,167.17,6.2]
[1717262340280,2.2128,167.21,167.17,6.2]
[1717262341291,2.2126,167.23,167.17,6.2]
[1717262341602,2.2126,167.22,167.18,6.2]
[1717262342903,2.2126,167.22,167.2,6.2]
[1717262345096,2.2126,167.22,167.19,6.2]
[1717262345290,2.2127,167.21,167.19,6.2]
[1717262349598,2.2127,167.21,167.18,6.2]
[1717262351382,6.1992,167.25,167.11,4.22715454]
[1717262351581,2.2131,167.18,167.14,6.2]
[1717262351804,2.2133,167.17,167.14,6.2]
[1717262352411,2.2132,167.18,167.14,6.2]
[1717262353093,2.2132,167.18,167.11,4.22715454]
[1717262353605,2.2132,167.18,167.14,6.2]
[1717262355311,2.2132,167.18,167.11,4.22715454]
[1717262355496,2.2132,167.18,167.14,6.2]
[1717262356611,2.2132,167.18,167.11,4.22715454]
[1717262356794,2.2132,167.18,167.14,6.2]
[1717262361014,6.2,167.2,167.14,6.2]
[1717262361015,2.2133,167.17,167.14,6.2]
[1717262368422,2.2133,167.17,167.11,4.22715454]
[1717262368735,2.2133,167.17,167.14,6.2]
[1717262376130,2.2132,167.18,167.14,6.2]
[1717262377232,2.2132,167.18,167.15,6.2]
[1717262384039,2.2133,167.17,167.15,6.2]
[1717262388233,2.2133,167.17,167.14,6.2]
[1717262394835,2.2133,167.17,167.1,0.0643574]
[1717262395139,2.2134,167.16,167.14,6.2]
[1717262403642,2.2133,167.17,167.15,6.2]
[1717262403958,2.2133,167.17,167.16,6.2]
[1717262404671,2.2131,167.18,167.16,6.2]
[1717262405849,2.2133,167.17,167.16,6.2]
[1717262408765,2.2133,167.17,167.1,0.0643574]
[1717262409055,2.2133,167.17,167.15,6.2]
[1717262411859,2.2133,167.17,167.1,0.0643574]
[1717262411860,2.2134,167.16,167.1,0.0643574]
[1717262412057,2.2134,167.16,167.15,6.2]
[1717262416140,2.2134,167.16,167.14,6.2]
[1717262417841,2.2132,167.18,167.15,6.2]
[1717262418050,2.213,167.19,167.17,6.2]
[1717262418246,2.213,167.19,167.18,6.2]
[1717262419860,2.2129,167.2,167.18,6.2]
[1717262420749,2.213,167.19,167.18,6.2]
[1717262422174,10.8551,167.24,167.18,6.2]
[1717262422349,11.0603,167.27,167.21,6.2]
[1717262422554,2.2126,167.23,167.12,109.2654]
[1717262422760,2.2126,167.23,167.21,6.2]
[1717262422951,2.2126,167.22,167.21,6.2]
[1717262424552,2.2125,167.23,167.21,6.2]
[1717262424747,2.2125,167.23,167.22,6.2]
[1717262425477,4.4241,167.27,167.22,6.2]
[1717262425478,2.2124,167.24,167.22,6.2]
[1717262427640,2.2124,167.24,167.17,6.5154]
[1717262427837,2.2124,167.24,167.23,6.2]
[1717262428269,2.2124,167.24,167.17,8.75422893]
[1717262428471,2.2124,167.24,167.23,6.2]
[1717262432269,2.2122,167.25,167.23,6.2]
[1717262439952,2.2122,167.25,167.22,6.2]
[1717262440155,2.2122,167.25,167.17,6.5154]
[1717262440467,2.2123,167.24,167.22,6.2]
[1717262444181,2.2122,167.25,167.22,6.2]
[1717262451078,2.2122,167.25,167.17,6.5154]
[1717262451262,2.2122,167.25,167.22,6.2]
[1717262451995,2.2122,167.25,167.21,6.2]
[1717262457285,2.2122,167.25,167.17,6.5154]
[1717262457468,2.2122,167.25,167.21,6.2]
[1717262458882,2.2124,167.24,167.17,6.5154]
[1717262459082,2.2124,167.24,167.2,6.2]
[1717262460598,2.2125,167.23,167.19,6.2]
[1717262460980,2.2124,167.24,167.19,6.2]
[1717262461173,2.2124,167.24,167.2,6.2]
[1717262461782,2.2124,167.24,167.14,15.7835]
[1717262461981,2.2124,167.24,167.21,6.2]
[1717262462388,2.2125,167.23,167.21,6.2]
[1717262462702,2.2125,167.23,167.14,15.7835]
[1717262462703,2.2125,167.23,167.2,6.2]
[1717262465094,2.2125,167.23,167.14,15.7835]
[1717262465399,2.2128,167.21,167.18,6.2]
[1717262466277,2.2128,167.21,167.13,6.5976]
[1717262466591,2.2128,167.21,167.18,6.2]
[1717262466991,2.2128,167.21,167.17,6.2]
[1717262472316,2.2128,167.21,167.13,6.5976]
[1717262472629,2.2128,167.21,167.17,6.2]
[1717262472910,2.2128,167.21,167.1,137.0364114]
[1717262472911,6.2,167.23,167.1,15.7914574]
[1717262473117,2.213,167.19,167.1,15.7914574]
[1717262473286,2.213,167.19,167.15,6.2]
[1717262473487,2.213,167.19,167.1,15.7914574]
[1717262473693,2.213,167.19,167.15,6.2]
[1717262476700,2.2129,167.2,167.16,6.2]
[1717262477904,2.2129,167.2,167.12,24.8]
[1717262478099,2.213,167.19,167.12,24.8]
[1717262480411,2.2132,167.18,167.12,24.8]
[1717262480713,2.2132,167.18,167.15,6.2]
[1717262484821,2.213,167.19,167.15,6.2]
[1717262486111,2.2129,167.2,167.18,6.2]
[1717262486423,2.3827,167.22,167.18,6.2]
[1717262486593,2.2128,167.21,167.19,6.2]
[1717262489501,2.2128,167.21,167.18,6.2]
[1717262494630,2.2128,167.21,167.19,6.2]
[1717262497908,2.2128,167.21,167.12,24.8]
[1717262498215,2.2128,167.21,167.19,6.2]
[1717262500828,2.2128,167.21,167.12,24.8]
[1717262501035,2.2128,167.21,167.18,6.2]
[1717262501923,2.2128,167.21,167.19,6.2]
[1717262502433,2.2128,167.21,167.12,24.8]
[1717262502729,2.2129,167.2,167.19,6.2]
[1717262503832,2.2128,167.21,167.19,6.2]
[1717262508014,2.2128,167.21,167.12,24.8]
[1717262508214,2.2128,167.21,167.19,6.2]
[1717262517348,2.2128,167.21,167.2,1.49512588]
[1717262521259,2.2128,167.21,167.2,7.69512588]
[1717262523045,10.4803,167.25,167.2,7.69512588]
[1717262523046,2.2126,167.22,167.2,7.69512588]
[1717262523356,2.2125,167.23,167.21,6.2]
[1717262523540,2.2125,167.23,167.22,6.2]
[1717262523731,2.2122,167.25,167.22,6.2]
[1717262523943,2.2122,167.25,167.23,6.2]
[1717262524462,2.2123,167.24,167.23,6.2]
[1717262527165,2.2122,167.25,167.23,6.2]
[1717262527373,11.0575,167.31,167.18,1.49512588]
[1717262527550,2.212,167.27,167.25,6.2]
[1717262528053,2.212,167.27,167.24,6.2]
[1717262528673,2.212,167.27,167.25,6.2]
[1717262530062,2.212,167.27,167.21,1.49512588]
[1717262530264,0.34,167.3,167.21,1.49512588]
[1717262530265,2.2121,167.26,167.21,1.49512588]
[1717262530566,2.2121,167.26,167.21,7.81502588]
[1717262530982,2.212,167.27,167.21,7.81502588]
[1717262532350,2.2121,167.26,167.21,7.81502588]
[1717262532856,2.212,167.27,167.21,7.81502588]
[1717262557488,2.212,167.27,167.21,1.49512588]
[1717262558589,2.2121,167.26,167.21,1.49512588]
[1717262558785,2.2121,167.26,167.23,6.2]
[1717262559598,2.2121,167.26,167.18,1.49512588]
[1717262559781,2.2121,167.26,167.23,6.2]
[1717262560184,2.2121,167.26,167.18,1.49512588]
[1717262560386,6.2,167.28,167.22,6.2]
[1717262560581,2.2123,167.25,167.22,6.2]
[1717262560780,2.2123,167.25,167.23,6.2]
[1717262566982,2.2121,167.26,167.23,6.2]
[1717262567298,2.2121,167.26,167.24,6.2]
[1717262569000,2.2121,167.26,167.21,1.49512588]
[1717262570197,1.7121,167.26,167.21,1.49512588]
[1717262572999,10.8418,167.29,167.21,1.49512588]
[1717262573300,2.2122,167.26,167.21,1.49512588]
[1717262573798,2.2122,167.26,167.21,10.47040262]
[1717262574182,2.2122,167.26,167.21,1.49512588]
[1717262603719,2.2122,167.26,167.23,6.2]
[1717262610233,2.2122,167.26,167.19,1.49512588]
[1717262610439,2.2122,167.26,167.23,6.2]
[1717262614252,2.2122,167.26,167.25,6.2]
[1717262614435,6.4183,167.29,167.25,6.2]
[1717262614436,2.212,167.27,167.25,6.2]
[1717262614631,2.212,167.27,167.26,6.2]
[1717262619133,2.212,167.27,167.21,11.10521828]
[1717262619342,2.212,167.27,167.26,6.2]
[1717262619720,2.212,167.27,167.25,6.2]
[1717262627141,2.212,167.27,167.26,6.2]
[1717262651453,2.212,167.27,167.22,15.08719961]
[1717262651656,2.212,167.27,167.26,6.2]
[1717262656161,2.212,167.27,167.22,6.1178]
[1717262656357,5.61815476,167.3,167.22,6.1178]
[1717262656757,5.61815476,167.3,167.25,6.2]
[1717262657467,2.2121,167.26,167.25,6.2]
[1717262659170,2.2121,167.26,167.22,6.1178]
[1717262659479,2.2121,167.26,167.25,6.2]
[1717262660269,2.212,167.27,167.25,6.2]
[1717262660444,2.212,167.27,167.22,6.1178]
[1717262660644,2.212,167.27,167.25,6.2]
[1717262668780,2.212,167.27,167.22,6.1178]
[1717262668980,2.212,167.27,167.25,6.2]
[1717262670258,2.212,167.27,167.22,6.1178]
[1717262670755,2.2121,167.26,167.22,6.1178]
[1717262670962,2.2121,167.26,167.25,6.2]
[1717262671355,2.2121,167.26,167.22,6.1178]
[1717262671649,2.2121,167.26,167.25,6.2]
[1717262671850,2.212,167.27,167.25,6.2]
[1717262675873,2.212,167.27,167.22,6.1178]
[1717262676065,2.212,167.27,167.25,6.2]
[1717262676769,2.212,167.27,167.22,6.1178]
[1717262676973,2.212,167.27,167.25,6.2]
[1717262691981,2.212,167.27,167.22,6.1178]
[1717262692182,2.212,167.27,167.25,6.2]
[1717262704595,2.212,167.27,167.26,6.2]
[1717262705902,2.2118,167.28,167.26,6.2]
[1717262706079,2.2118,167.28,167.27,6.2]
[1717262710789,32.6263,167.34,167.27,6.2]
[1717262710990,0.34,167.33,167.27,6.2]
[1717262712803,0.34,167.33,167.28,6.2]
[1717262713316,0.34,167.33,167.22,0.77309862]
[1717262713611,2.2117,167.29,167.28,6.2]
[1717262718811,2.2117,167.29,167.27,6.2]
[1717262730413,2.2118,167.28,167.22,9.7423594]
[1717262730817,2.2118,167.28,167.27,6.2]
[1717262731216,2.2118,167.28,167.22,9.7423594]
[1717262731516,2.2118,167.28,167.26,6.2]
[1717262733902,2.2118,167.28,167.22,9.7423594]
[1717262734102,2.2118,167.28,167.26,6.2]
[1717262737316,2.2118,167.28,167.25,6.2]
[1717262739930,2.2117,167.29,167.25,6.2]
[1717262743529,2.2117,167.29,167.22,8.969869]
[1717262743730,2.2117,167.29,167.25,6.2]
[1717262760840,0.34,167.33,167.27,6.2]
[1717262761018,2.2116,167.3,167.28,6.50485338]
[1717262761215,2.2116,167.3,167.28,6.2]
[1717262762036,2.2114,167.32,167.29,6.50478048]
[1717262762340,2.2114,167.32,167.3,6.2]
[1717262763241,2.2112,167.33,167.3,6.2]
[1717262780840,2.2112,167.33,167.31,6.2]
[1717262785286,2.2113,167.32,167.3,6.2]
[1717262785651,2.2114,167.31,167.28,6.2]
[1717262787665,2.2113,167.32,167.28,6.2]
[1717262789460,2.2112,167.33,167.3,6.2]
[1717262790767,2.2112,167.33,167.31,6.2]
[1717262790965,2.2111,167.34,167.31,6.2]
[1717262792088,2.2112,167.33,167.31,6.2]
[1717262794067,2.2113,167.32,167.24,22.4664761]
[1717262794377,2.2113,167.32,167.28,6.2]
[1717262794879,2.2113,167.32,167.27,6.2]
[1717262795065,2.2113,167.32,167.28,6.2]
[1717262796170,2.2113,167.32,167.24,4.5164761]
[1717262796378,2.2113,167.32,167.28,6.2]
[1717262796754,2.2113,167.32,167.27,6.2]
[1717262798699,2.2113,167.32,167.28,6.2]
[1717262801584,2.2112,167.33,167.28,6.2]
[1717262805784,2.2112,167.33,167.29,6.2]
[1717262815794,2.2112,167.33,167.26,8.96363952]
[1717262816098,2.2112,167.33,167.28,6.2]
[1717262823796,2.2112,167.33,167.29,6.2]
[1717262823996,2.2112,167.33,167.26,8.96365277]
[1717262824224,2.2112,167.33,167.29,6.2]
[1717262825299,2.2112,167.33,167.28,6.2]
[1717262826911,6.2,167.34,167.26,8.96365277]
[1717262827095,2.2117,167.3,167.26,8.96365277]
[1717262827287,2.2117,167.3,167.25,15.16559407]
[1717262829506,2.2117,167.3,167.25,6.2]
[1717262830089,2.2117,167.3,167.26,6.2]
[1717262834403,2.2117,167.3,167.23,8.96730551]
[1717262834607,2.2117,167.3,167.27,6.2]
[1717262841416,2.2117,167.3,167.28,6.2]
[1717262843410,2.2115,167.31,167.28,6.2]
[1717262844728,2.2115,167.31,167.29,6.2]
[1717262845334,2.2115,167.31,167.28,6.2]
[1717262848302,2.2115,167.31,167.29,6.2]
[1717262848804,2.2115,167.31,167.3,6.2]
[1717262855332,2.2115,167.31,167.29,6.2]
[1717262855533,2.2116,167.3,167.24,8.96536683]
[1717262855708,2.2116,167.3,167.29,6.2]
[1717262858536,11.0603,167.34,167.29,6.2]
[1717262858537,2.2115,167.31,167.29,6.2]
[1717262879059,2.2115,167.31,167.26,8.9632989]
[1717262879345,2.2115,167.31,167.29,6.2]
[1717262880347,2.2115,167.31,167.25,8.9632989]
[1717262880552,2.2115,167.31,167.28,6.2]
[1717262902339,2.2115,167.31,167.26,6.2]
[1717262916771,2.2116,167.3,167.25,8.9631231]
[1717262916969,2.2116,167.3,167.27,6.2]
[1717262917351,2.2116,167.3,167.25,8.9631231]
[1717262917556,6.1077,167.3,167.25,8.9631231]
[1717262917956,2.2118,167.28,167.25,8.9631231]
[1717262923378,2.2118,167.28,167.25,15.1631231]
[1717262923781,2.2118,167.28,167.26,6.2]
[1717262924277,2.2117,167.29,167.26,6.2]
[1717262929082,2.2117,167.29,167.27,6.2]
[1717262929286,2.2116,167.3,167.28,6.2]
[1717262929490,2.2114,167.31,167.29,6.2]
[1717262932482,2.2115,167.3,167.29,6.2]
[1717262946178,4.4221,167.35,167.29,6.2]
[1717262946511,2.2114,167.32,167.3,6.2]
[1717262946676,2.2114,167.32,167.31,6.2]
[1717262953804,2.2114,167.32,167.27,8.9599631]
[1717262953805,2.2114,167.32,167.3,6.2]
[1717262957912,2.2114,167.32,167.31,6.2]
[1717262962729,2.2112,167.33,167.31,6.2]
[1717262962900,2.2112,167.33,167.32,6.2]
[1717262966624,2.211,167.34,167.32,6.2]
[1717262966821,2.211,167.34,167.33,6.2]
[1717262969334,2.211,167.34,167.32,6.2]
[1717262974627,2.211,167.34,167.28,6.2]
[1717262974837,2.211,167.34,167.31,6.2]
[1717262979437,2.2109,167.35,167.31,6.2]
[1717262997544,6.2,167.37,167.31,6.2]
[1717262998466,2.2109,167.35,167.31,6.2]
[1717263000766,2.2108,167.36,167.28,15.16075012]
[1717263000953,2.2108,167.36,167.28,33.76075012]
[1717263002036,2.2108,167.36,167.28,33.75911292]
[1717263002238,2.2108,167.36,167.29,8.95911292]
[1717263003555,2.2109,167.35,167.29,8.95911292]
[1717263003755,15.367,167.4,167.3,6.2]
[1717263003756,2.211,167.34,167.3,6.2]
[1717263004644,2.2109,167.35,167.3,6.2]
[1717263005543,2.211,167.34,167.3,6.2]
[1717263005731,2.211,167.34,167.28,8.95911292]
[1717263005934,2.2113,167.33,167.28,8.95911292]
[1717263006159,2.2113,167.33,167.29,6.2]
[1717263008153,2.2113,167.33,167.26,8.95911292]
[1717263008457,2.2113,167.33,167.29,6.2]
[1717263009035,2.2113,167.33,167.28,6.2]
[1717263012756,2.2113,167.33,167.29,6.2]
[1717263013345,8.6215,167.33,167.29,6.2]
[1717263014863,8.6215,167.33,167.25,8.96348627]
[1717263015174,8.6215,167.33,167.28,6.2]
[1717263015664,8.6215,167.33,167.25,8.96348627]
[1717263015841,8.6215,167.33,167.24,8.96348627]
[1717263016163,8.6215,167.33,167.28,6.2]
[1717263016461,8.6215,167.33,167.29,6.2]
[1717263016763,8.6215,167.33,167.28,6.2]
[1717263019458,8.6215,167.33,167.24,8.96348627]
[1717263019660,2.2113,167.32,167.28,6.2]
[1717263020866,2.2113,167.32,167.24,8.96417921]
[1717263021050,2.2113,167.32,167.28,6.2]
[1717263021759,2.2113,167.32,167.24,8.96417921]
[1717263021952,2.2113,167.32,167.27,6.2]
[1717263022154,2.2114,167.31,167.27,6.2]
[1717263022755,2.2114,167.31,167.24,8.96417921]
[1717263022973,2.2113,167.32,167.24,8.96417921]
[1717263023151,2.2113,167.32,167.28,6.2]
[1717263023770,2.2113,167.32,167.27,6.2]
[1717263025150,2.2113,167.32,167.23,8.9636831]
[1717263025349,2.2113,167.32,167.27,6.2]
[1717263025665,8.6215,167.32,167.27,6.2]
[1717263026471,8.6215,167.32,167.23,8.96442605]
[1717263026772,8.6215,167.32,167.27,6.2]
[1717263027269,8.6215,167.32,167.23,8.96442605]
[1717263027461,8.6215,167.32,167.27,6.2]
[1717263029871,8.6215,167.32,167.23,8.96442605]
[1717263030071,8.6215,167.32,167.27,6.2]
[1717263036272,6.54,167.34,167.23,8.96417498]
[1717263036273,6.3653,167.31,167.23,8.96417498]
[1717263036477,6.37,167.3,167.23,6.2]
[1717263036679,2.2118,167.29,167.23,6.2]
[1717263036974,2.2119,167.28,167.22,8.96417498]
[1717263037567,2.2119,167.28,167.23,6.2]
[1717263038571,2.2119,167.28,167.22,8.96417498]
[1717263038888,2.2119,167.28,167.23,6.2]
[1717263045489,2.212,167.27,167.23,6.2]
[1717263047193,2.2118,167.28,167.23,6.2]
[1717263048500,2.2118,167.28,167.24,6.2]
[1717263050503,2.2118,167.28,167.25,6.2]
[1717263050675,2.2118,167.28,167.26,6.2]
[1717263064417,2.2118,167.28,167.25,6.2]
[1717263069422,2.2119,167.27,167.24,6.2]
[1717263071322,2.2119,167.27,167.21,1.49512588]
[1717263071700,2.2119,167.27,167.23,6.2]
[1717263076120,4.4229,167.31,167.23,6.2]
[1717263076299,2.2118,167.28,167.23,6.2]
[1717263076816,2.2118,167.28,167.19,1.49512588]
[1717263077023,2.2118,167.28,167.2,29.7045992]
[1717263077225,2.2118,167.28,167.21,4.9045992]
[1717263078293,2.2118,167.28,167.19,1.49512588]
[1717263078294,2.212,167.27,167.19,1.49512588]
[1717263078500,2.212,167.27,167.23,6.2]
[1717263079004,2.212,167.27,167.22,6.2]
[1717263079618,2.212,167.27,167.19,1.49512588]
[1717263079817,2.212,167.27,167.23,6.2]
[1717263080126,2.212,167.27,167.19,1.49512588]
[1717263080324,2.212,167.27,167.23,6.2]
[1717263083833,2.2118,167.28,167.23,6.2]
[1717263085631,2.2118,167.28,167.2,24.8]
[1717263088335,2.2118,167.28,167.21,1.49512588]
[1717263097759,8.4793,167.28,167.24,6.2]
[1717263100957,19.6838,167.31,167.21,1.49512588]
[1717263100958,2.2117,167.29,167.25,6.2]
[1717263101163,2.2117,167.29,167.26,6.2]
[1717263107765,2.2117,167.29,167.21,1.49512588]
[1717263107766,6.4375,167.28,167.21,1.49512588]
[1717263107955,6.4375,167.28,167.24,6.2]
[1717263108343,6.4375,167.28,167.21,1.49512588]
[1717263108543,6.4375,167.28,167.24,6.2]
[1717263108771,2.212,167.27,167.24,6.2]
[1717263108985,2.212,167.27,167.25,6.2]
[1717263123787,2.212,167.27,167.24,6.2]
[1717263125082,2.2122,167.25,167.18,10.99873905]
[1717263125288,2.2122,167.25,167.22,6.2]
[1717263125490,2.2126,167.22,167.18,4.51593905]
[1717263125690,6.2,167.26,167.18,4.51593905]
[1717263125691,2.2125,167.23,167.19,11.10386063]
[1717263125897,2.2125,167.23,167.2,4.90386063]
[1717263126700,2.2125,167.23,167.18,4.51593905]
[1717263126865,2.2125,167.23,167.19,11.10383833]
[1717263127177,2.2125,167.23,167.19,6.2]
[1717263127379,2.2124,167.24,167.2,6.2]
[1717263127590,2.2125,167.23,167.16,8.964175]
[1717263127888,2.2129,167.21,167.17,4.90386287]
[1717263128087,2.2126,167.22,167.19,6.2]
[1717263128470,2.2126,167.22,167.18,6.2]
[1717263128670,2.2126,167.22,167.19,4.90400194]
[1717263131094,2.2126,167.22,167.19,11.10400194]
[1717263131277,2.2126,167.22,167.19,6.2]
[1717263132795,2.2126,167.22,167.14,6.4232]
[1717263132998,2.2126,167.22,167.19,6.2]
[1717263139300,2.2126,167.22,167.14,6.4232]
[1717263139494,2.2126,167.22,167.19,6.2]
[1717263140305,2.2126,167.22,167.14,6.4232]
[1717263140604,2.2126,167.22,167.19,6.2]
[1717263151402,2.2126,167.22,167.14,6.4232]
[1717263151594,2.2126,167.22,167.2,6.2]
[1717263156314,2.2126,167.22,167.14,6.4232]
[1717263156619,2.2126,167.22,167.19,6.2]
[1717263157210,2.2127,167.21,167.19,6.2]
[1717263157400,2.2126,167.22,167.19,6.2]
[1717263157791,2.2126,167.22,167.2,6.2]
[1717263157993,2.2126,167.22,167.21,6.2]
[1717263167023,2.2128,167.21,167.14,6.4232]
[1717263167324,2.2128,167.21,167.2,6.2]
[1717263170197,2.2128,167.21,167.14,6.4232]
[1717263170522,2.2128,167.21,167.2,6.2]
[1717263172324,2.2128,167.21,167.2,11.10095814]
[1717263174127,2.2126,167.22,167.2,11.10095814]
[1717263174321,4.424,167.27,167.21,6.2]
[1717263174501,4.424,167.27,167.23,6.2]
[1717263175417,2.2123,167.24,167.23,6.2]
[1717263176920,2.2123,167.24,167.22,6.2]
[1717263179217,2.2123,167.24,167.23,6.2]
[1717263181735,2.2125,167.23,167.14,84.3732]
[1717263181924,2.2125,167.23,167.22,6.2]
[1717263184232,2.2124,167.24,167.22,6.2]
[1717263184438,2.2124,167.24,167.14,84.3732]
[1717263184730,2.2124,167.24,167.22,6.2]
[1717263192149,2.2124,167.24,167.23,6.2]
[1717263195431,2.2124,167.24,167.22,6.2]
[1717263201344,2.2124,167.24,167.18,6.33]
[1717263201532,2.2124,167.24,167.19,4.90290611]
[1717263201733,2.2124,167.24,167.22,6.2]
[1717263202948,2.2124,167.24,167.18,6.33]
[1717263203258,2.2124,167.24,167.22,6.2]
[1717263204943,2.2124,167.24,167.21,6.2]
[1717263215760,2.2122,167.25,167.21,6.2]
[1717263216061,2.2122,167.25,167.22,6.2]
[1717263217267,2.2122,167.25,167.23,6.2]
[1717263222669,2.2123,167.24,167.23,6.2]
[1717263237878,4.4237,167.28,167.23,6.2]
[1717263238080,0.17,167.27,167.23,6.2]
[1717263238579,2.2123,167.24,167.23,6.2]
[1717263247293,2.2123,167.24,167.22,6.2]
[1717263254979,2.2125,167.23,167.22,6.2]
[1717263255587,2.2125,167.23,167.15,6.5]
[1717263255773,2.2125,167.23,167.22,6.2]
[1717263259299,2.2125,167.23,167.15,6.5]
[1717263259491,2.2125,167.23,167.22,6.2]
[1717263270685,2.2126,167.22,167.15,6.5]
[1717263271000,2.2127,167.21,167.16,4.89875283]
[1717263271176,2.2129,167.2,167.17,4.89875283]
[1717263271378,2.2129,167.2,167.15,6.33]
[1717263271379,2.2129,167.2,167.18,6.2]
[1717263271604,2.2129,167.2,167.19,4.89875283]
[1717263274504,2.2128,167.21,167.19,11.09875283]
[1717263274708,2.2128,167.21,167.19,6.2]
[1717263275001,2.2126,167.22,167.2,11.09919199]
[1717263275199,2.2126,167.22,167.21,6.2]
[1717263280413,2.2125,167.23,167.21,6.2]
[1717263280590,2.2126,167.22,167.15,6.33]
[1717263280788,2.2126,167.22,167.21,6.2]
[1717263281620,2.2125,167.23,167.21,6.2]